bitfinex-derivatives/quotes_BNBF0:USTF0_20260221
["timestamp","ask_amount","ask_price","bid_price","bid_amount"]
[1771699868315,1.1899314,629.92,629.37,1.18389513]
[1771699868519,1.1899314,629.91,629.35,1.18389513]
[1771699873222,1.1899314,629.91,629.36,2.96889513]
[1771699875219,1.1899314,629.9,629.36,2.96889513]
[1771699879622,1.5865752,630.02,629.36,1.785]
[1771699879826,1.19149471,629.9,629.36,2.97076687]
[1771699888331,1.5865752,630.02,629.36,2.97076687]
[1771699888332,1.5865752,630.02,629.36,1.785]
[1771699888536,1.1915164,629.9,629.36,2.97078822]
[1771699902141,1.1915164,629.89,629.36,2.97078822]
[1771699905645,1.1915164,629.81,629.36,1.785]
[1771699905849,1.1915164,629.79,629.36,1.785]
[1771699906344,1.1915164,629.81,629.36,1.785]
[1771699907246,1.1915164,629.78,629.36,1.785]
[1771699907444,1.1915164,629.77,629.36,1.785]
[1771699908348,1.1915164,629.78,629.36,1.785]
[1771699909150,1.1915164,629.75,629.36,1.785]
[1771699909446,1.1915164,629.66,629.36,1.785]
[1771699910346,1.1915164,629.68,629.36,1.785]
[1771699911347,1.1915164,629.7,629.36,1.785]
[1771699912245,1.1915164,629.71,629.36,1.785]
[1771699913448,1.1915164,629.72,629.36,1.785]
[1771699914248,1.1915164,629.73,629.36,1.785]
[1771699916251,1.1915164,629.74,629.36,1.785]
[1771699917354,1.1915164,629.75,628.94,1.18578822]
[1771699919254,1.1915164,629.76,628.93,1.18578822]
[1771699920950,1.1915164,629.76,628.94,1.605]
[1771699922056,1.1915164,629.77,628.94,1.605]
[1771699925358,1.1915164,629.78,628.94,1.605]
[1771699928662,1.1915164,629.72,628.94,1.605]
[1771699933465,1.1915164,629.71,628.94,1.605]
[1771699936968,1.1915164,629.71,628.89,0.27632096]
[1771699938472,1.1915164,629.7,628.89,0.27632096]
[1771699939770,1.1915164,629.7,628.9,1.516]
[1771699941372,1.1915164,629.69,628.9,1.516]
[1771699943269,1.1915164,629.68,628.9,1.516]
[1771699943468,1.1915164,629.72,628.9,1.516]
[1771699943673,1.1915164,629.72,628.93,1.18578822]
[1771699944271,1.1915164,629.72,628.94,1.18578822]
[1771699944574,1.1915164,629.76,628.97,1.18578822]
[1771699945170,1.1915164,629.75,628.97,1.18578822]
[1771699945373,1.1915164,629.75,628.98,1.18578822]
[1771699946374,1.1915164,629.74,628.99,1.18578822]
[1771699947272,1.1915164,629.73,629.0,1.18578822]
[1771699948271,1.1915164,629.72,629.01,1.18578822]
[1771699949476,1.1915164,629.71,629.02,1.18578822]
[1771699950276,0.27629793,630.28,629.04,1.18578822]
[1771699950277,1.1915164,629.69,629.04,1.18578822]
[1771699951377,1.1915164,629.68,629.05,1.18578822]
[1771699953276,1.1915164,629.67,629.06,1.18578822]
[1771699955277,1.1915164,629.68,629.06,1.18578822]
[1771699958582,1.1915164,629.7,629.08,1.18578822]
[1771699963287,1.1915164,629.71,629.08,1.18578822]
[1771699964184,1.1915164,629.71,629.07,1.18578822]
[1771699966688,1.1915164,629.71,629.08,1.18578822]
[1771699969693,1.1915164,629.71,629.09,1.18578822]
[1771699969889,1.1915164,629.74,629.1,1.18578822]
[1771699970192,1.1915164,629.74,629.11,1.18578822]
[1771699970392,1.1915164,629.8,629.16,1.18578822]
[1771699970893,1.1915164,629.81,629.17,1.18578822]
[1771699972195,1.1915164,629.82,629.17,1.18578822]
[1771699973097,1.1915164,629.82,629.16,1.18578822]
[1771699975594,1.1915164,629.84,629.17,1.18578822]
[1771699975894,1.1915164,629.92,629.25,1.18578822]
[1771699976196,1.1915164,629.93,629.24,1.18578822]
[1771699977196,1.1915164,629.94,629.24,1.18578822]
[1771699978200,1.1915164,629.94,629.23,1.18578822]
[1771699979097,1.1915164,629.95,629.22,1.18578822]
[1771699980302,1.1915164,629.95,629.23,1.18578822]
[1771699981100,1.1915164,629.95,629.22,1.18578822]
[1771699982299,0.2764351,630.07,629.22,1.18578822]
[1771699982300,1.1915164,629.96,629.22,1.18578822]
[1771699984205,1.1915164,629.96,629.21,1.18578822]
[1771699988910,1.1915164,629.96,628.94,0.27646255]
[1771699988911,1.1915164,629.97,629.22,1.18578822]
[1771699989307,1.1915164,629.98,629.22,1.18578822]
[1771700000826,1.1915164,629.98,629.23,1.262]
[1771700003223,1.1915164,629.97,629.23,2.44778822]
[1771700004430,1.1915164,629.93,629.23,1.262]
[1771700005527,1.1915164,629.94,629.23,1.262]
[1771700006128,1.1915164,629.95,629.23,1.262]
[1771700007227,1.1915164,629.95,629.23,2.44778822]
[1771700008228,1.1915164,629.94,629.23,2.44778822]
[1771700009131,1.1915164,629.94,629.24,1.18578822]
[1771700010236,1.1915164,629.93,629.24,1.18578822]
[1771700011135,1.1915164,629.93,629.25,1.18578822]
[1771700011931,1.1915164,629.85,629.23,1.262]
[1771700012136,1.1915164,629.77,629.23,1.262]
[1771700014138,1.1915164,629.76,629.23,1.262]
[1771700014435,1.1915164,629.77,629.23,1.262]
[1771700018143,1.1915164,629.78,629.23,1.262]
[1771700018741,1.1915164,629.79,629.23,1.262]
[1771700021144,1.1915164,629.8,629.23,1.262]
[1771700024343,1.1915164,629.81,629.23,1.262]
[1771700024943,1.1915164,629.81,629.09,1.18578822]
[1771700026246,1.1915164,629.81,629.08,1.18578822]
[1771700028947,1.1915164,629.81,629.09,1.67]
[1771700036249,1.1915164,629.82,629.09,2.85578822]
[1771700036556,1.1915164,629.86,629.12,1.18578822]
[1771700036754,1.1915164,629.94,629.21,1.18578822]
[1771700039253,1.5865752,630.05,629.1,1.570881]
[1771700039451,1.18755012,629.94,629.21,1.18075976]
[1771700042455,1.18755012,629.94,629.22,1.18075976]
[1771700044157,1.18755012,629.93,629.22,1.18075976]
[1771700048758,1.18755012,629.94,629.23,1.18075976]
[1771700049255,1.18755012,629.93,629.23,1.18075976]
[1771700054264,1.18755012,629.92,629.23,1.18075976]
[1771700063068,1.18755012,629.9,629.21,1.18075976]
[1771700064371,1.18755012,629.9,629.22,1.18075976]
[1771700065073,1.18755012,629.9,629.23,1.71]
[1771700069278,1.18755012,629.89,629.23,1.71]
[1771700071377,1.18755012,629.89,629.23,2.89075976]
[1771700073274,1.18755012,629.88,629.23,2.89075976]
[1771700074378,1.18755012,629.88,629.24,1.18075976]
[1771700076176,1.18755012,629.87,629.24,1.18075976]
[1771700077277,1.18755012,629.87,629.25,1.18075976]
[1771700077877,1.18755012,629.86,629.24,1.18075976]
[1771700078279,1.18755012,629.85,629.24,1.18075976]
[1771700079177,1.18755012,629.84,629.25,1.18075976]
[1771700081283,1.18755012,629.83,629.26,1.18075976]
[1771700085184,1.18755012,629.83,629.27,1.764]
[1771700089887,1.18755012,629.84,629.27,2.94475976]
[1771700097493,1.18755012,629.84,629.28,1.18075976]
[1771700098388,1.5865752,629.95,629.28,1.18075976]
[1771700098389,1.18755012,629.83,629.28,1.18075976]
[1771700098888,1.18755012,629.89,629.33,1.18075976]
[1771700099089,1.18755012,629.9,629.34,1.18075976]
[1771700099288,1.18755012,629.91,629.34,1.18075976]
[1771700100492,1.18755012,629.93,629.35,1.18075976]
[1771700101390,1.18755012,629.95,629.36,1.18075976]
[1771700101591,1.18755012,629.95,629.27,1.764]
[1771700101893,1.5865752,630.06,629.27,1.764]
[1771700102092,2.37776948,630.17,629.27,1.764]
[1771700102297,0.27633961,630.27,629.27,1.764]
[1771700103799,1.58770455,630.06,629.27,1.764]
[1771700104400,1.19077299,629.95,629.36,1.18245344]
[1771700104698,1.58770455,630.06,629.27,1.764]
[1771700104999,2.38155683,630.17,629.27,1.764]
[1771700105402,0.27633961,630.27,629.27,1.764]
[1771700105798,1.19076698,629.95,629.36,1.18244736]
[1771700106501,1.19076698,629.95,629.27,1.764]
[1771700106502,1.19076698,629.96,629.35,1.18244736]
[1771700108303,1.19076698,629.97,629.34,1.18244736]
[1771700108900,1.19076698,629.99,629.37,1.18244736]
[1771700109400,1.19076698,630.0,629.37,1.18244736]
[1771700110301,1.19076698,630.0,629.36,1.18244736]
[1771700113310,1.19076698,630.01,629.36,1.18244736]
[1771700114308,1.19076698,630.01,629.35,1.18244736]
[1771700114709,1.19076698,629.98,629.33,1.18244736]
[1771700116510,1.19076698,629.99,629.33,1.18244736]
[1771700125326,1.19076698,630.0,629.35,1.18244736]
[1771700131629,1.19076698,629.99,629.35,1.18244736]
[1771700133231,1.19076698,629.99,629.36,1.18244736]
[1771700134833,1.19076698,630.0,629.37,1.18244736]
[1771700136337,1.19076698,630.0,629.38,1.18244736]
[1771700137436,1.19076698,630.03,629.41,1.18244736]
[1771700138235,1.19076698,630.03,629.4,1.18244736]
[1771700138437,1.19076698,630.03,629.41,1.18244736]
[1771700138935,1.19076698,630.01,629.39,1.18244736]
[1771700139134,1.19076698,630.02,629.4,1.18244736]
[1771700139936,1.19076698,630.03,629.42,1.18244736]
[1771700141238,1.19076698,630.03,629.41,1.18244736]
[1771700141537,1.19076698,630.03,629.42,1.18244736]
[1771700142336,1.19076698,630.1,629.49,1.18244736]
[1771700144338,1.19076698,630.11,629.48,1.18244736]
[1771700145337,1.19076698,630.11,629.47,1.18244736]
[1771700146337,1.19076698,630.12,629.47,1.18244736]
[1771700147241,1.19076698,630.12,629.46,1.18244736]
[1771700149347,1.19076698,630.13,629.46,1.18244736]
[1771700151343,1.19076698,630.14,629.46,1.18244736]
[1771700152447,1.19076698,630.15,629.46,1.18244736]
[1771700154245,1.19076698,630.15,629.45,1.18244736]
[1771700156345,1.19076698,630.16,629.45,1.18244736]
[1771700160753,1.18757786,630.16,629.45,1.17883465]
[1771700168254,1.18757786,630.15,629.45,1.17883465]
[1771700168956,1.18757786,630.15,629.34,3.02659648]
[1771700168957,1.18757786,630.13,629.43,1.17883465]
[1771700172257,1.18757786,630.12,629.44,1.17883465]
[1771700174156,1.18757786,630.11,629.4,1.17883465]
[1771700174455,1.18757786,630.08,629.41,1.17883465]
[1771700175357,1.18757786,630.08,629.42,1.883]
[1771700177458,1.18757786,630.07,629.42,3.06183465]
[1771700178564,1.18757786,630.0,629.42,1.883]
[1771700180362,1.18757786,629.99,629.42,1.883]
[1771700183462,1.18757786,629.98,629.42,1.883]
[1771700187363,1.18757786,629.99,629.42,1.883]
[1771700189167,1.18757786,629.92,629.42,1.883]
[1771700189370,1.18757786,629.93,629.42,1.883]
[1771700191272,2.38153397,630.16,629.42,1.883]
[1771700191273,1.18757786,629.94,629.42,1.883]
[1771700194272,1.18757786,629.95,629.42,1.883]
[1771700197373,1.18757786,629.96,629.42,1.883]
[1771700210291,1.18757786,629.95,629.42,1.883]
[1771700214294,1.18757786,629.94,629.42,1.883]
[1771700217398,1.18757786,629.93,629.42,1.883]
[1771700219294,1.18757786,629.92,629.42,1.883]
[1771700221295,1.18757786,629.91,629.42,1.883]
[1771700223302,1.18757786,629.9,629.42,1.883]
[1771700224800,1.18757786,629.92,629.42,1.883]
[1771700226003,1.19026626,629.92,629.42,1.883]
[1771700227405,1.19026626,629.91,629.42,1.883]
[1771700229007,1.19026626,629.92,629.42,1.883]
[1771700229304,1.19026626,629.92,629.33,1.18212608]
[1771700230502,1.19026626,629.91,629.33,1.18212608]
[1771700232307,1.19026626,629.91,629.34,1.18212608]
[1771700232906,1.19026626,629.91,629.35,1.221]
[1771700233303,1.19026626,629.9,629.35,1.221]
[1771700239711,1.19026626,629.88,629.35,1.221]
[1771700247022,1.19026626,629.87,629.35,1.221]
[1771700257424,1.19026626,629.88,629.35,1.221]
[1771700262127,1.19026626,629.88,629.31,1.18212608]
[1771700263327,1.19026626,629.87,629.3,1.18212608]
[1771700265523,1.19026626,629.87,629.31,1.362]
[1771700280238,1.19026626,629.87,629.31,2.54412608]
[1771700281038,1.19026626,629.83,629.31,1.362]
[1771700281241,1.19026626,629.82,629.31,1.362]
[1771700281940,1.19026626,629.76,629.31,1.362]
[1771700282138,1.19026626,629.77,629.31,1.362]
[1771700283241,1.19026626,629.78,629.31,1.362]
[1771700285239,1.19026626,629.79,629.31,1.362]
[1771700288246,1.19026626,629.8,629.31,1.362]
[1771700288745,1.19026626,629.64,629.31,1.362]
[1771700288943,1.19026626,629.63,629.31,1.362]
[1771700289142,1.19026626,629.65,629.31,1.362]
[1771700290346,1.19026626,629.66,629.31,1.362]
[1771700291345,1.19026626,629.67,629.31,1.362]
[1771700292349,1.19026626,629.68,629.31,1.362]
[1771700293347,1.19026626,629.33,628.61,1.57659648]
[1771700293551,1.19026626,629.32,628.65,0.27650758]
[1771700293746,1.19026626,629.31,628.65,0.27650758]
[1771700293947,1.19026626,629.31,628.55,1.18212608]
[1771700294148,1.19026626,629.31,628.57,0.27665266]
[1771700294352,3.96926138,629.99,628.57,0.27665266]
[1771700294353,1.19026626,629.36,628.57,0.27665266]
[1771700295151,1.19026626,629.39,628.57,0.27665266]
[1771700296255,1.19026626,629.42,628.57,0.27665266]
[1771700296852,1.19026626,629.42,628.58,1.273]
[1771700297253,1.19026626,629.44,628.58,1.273]
[1771700298155,1.19026626,629.46,628.58,1.273]
[1771700299257,0.27634729,630.17,628.58,1.273]
[1771700299258,1.19026626,629.47,628.58,1.273]
[1771700299452,1.19026626,629.48,628.58,1.273]
[1771700300257,1.19026626,629.49,628.58,1.273]
[1771700301058,1.19026626,629.53,628.58,1.273]
[1771700301354,1.19026626,629.54,628.58,1.273]
[1771700302259,1.19026626,629.55,628.58,1.273]
[1771700303456,1.19026626,629.56,628.58,1.273]
[1771700305259,1.19026626,629.57,628.58,1.273]
[1771700307265,1.19026626,629.58,628.58,1.273]
[1771700311264,1.19026626,629.66,628.58,1.273]
[1771700313268,1.19026626,629.65,628.58,1.273]
[1771700315269,1.19026626,629.64,628.58,1.273]
[1771700317367,1.19026626,629.63,628.58,1.273]
[1771700318972,0.97641199,629.62,628.58,1.273]
[1771700319274,1.19026626,629.4,628.58,1.273]
[1771700319475,0.97641199,629.39,628.58,1.273]
[1771700320175,2.16667825,629.39,628.58,1.273]
[1771700320372,0.97641199,629.38,628.58,1.273]
[1771700321372,2.16667825,629.38,628.58,1.273]
[1771700321577,0.97641199,629.37,628.58,1.273]
[1771700322276,2.16667825,629.37,628.58,1.273]
[1771700322476,0.97641199,629.36,628.58,1.273]
[1771700323274,2.16667825,629.36,628.58,1.273]
[1771700323477,0.97641199,629.35,628.58,1.273]
[1771700324074,1.19026626,629.29,628.58,1.273]
[1771700324275,3.96926138,629.97,628.58,1.273]
[1771700324276,2.16667825,629.28,628.58,1.273]
[1771700324481,0.97641199,629.27,628.58,1.273]
[1771700325175,2.16667825,629.27,628.58,1.273]
[1771700325482,0.97641199,629.26,628.58,1.273]
[1771700326782,2.16667825,629.26,628.58,1.273]
[1771700327076,0.97641199,629.25,628.58,1.273]
[1771700328282,2.16667825,629.25,628.58,1.273]
[1771700328479,0.97641199,629.24,628.58,1.273]
[1771700329184,1.19026626,629.23,628.58,1.273]
[1771700329384,0.97641199,629.22,628.58,1.273]
[1771700330181,2.16667825,629.22,628.58,1.273]
[1771700330481,0.97641199,629.21,628.58,1.273]
[1771700331380,2.16667825,629.21,628.58,1.273]
[1771700331584,0.97641199,629.2,628.58,1.273]
[1771700331782,0.97641199,629.19,628.58,1.273]
[1771700331980,0.97641199,629.18,628.58,1.273]
[1771700332181,0.97641199,629.17,628.58,1.273]
[1771700332381,0.97641199,629.16,628.58,1.273]
[1771700332581,0.97641199,629.15,628.58,1.273]
[1771700332786,0.97641199,629.14,628.58,1.273]
[1771700332986,0.97641199,629.13,628.58,1.273]
[1771700333186,0.97641199,629.12,628.58,1.273]
[1771700333385,0.97641199,629.11,628.58,1.273]
[1771700333589,0.97641199,629.1,628.58,1.273]
[1771700333886,0.97641199,629.09,628.58,1.273]
[1771700334083,0.97641199,629.08,628.58,1.273]
[1771700334288,1.19026626,629.05,628.58,1.273]
[1771700334493,0.97641199,629.04,628.58,1.273]
[1771700334692,0.97641199,629.03,628.58,1.273]
[1771700334893,0.97641199,629.02,628.58,1.273]
[1771700335093,0.97641199,629.01,628.58,1.273]
[1771700335294,0.97641199,629.0,628.58,1.273]
[1771700335491,0.97641199,628.99,628.58,1.273]
[1771700335690,0.97641199,628.98,628.58,1.273]
[1771700335994,0.97641199,628.97,628.58,1.273]
[1771700336192,0.97641199,628.96,628.58,1.273]
[1771700336394,0.97641199,628.95,628.58,1.273]
[1771700336592,0.97641199,628.94,628.58,1.273]
[1771700336791,0.97641199,628.93,628.58,1.273]
[1771700337091,0.97641199,628.92,628.58,1.273]
[1771700337292,0.97641199,628.91,628.58,1.273]
[1771700337492,0.97641199,628.9,628.58,1.273]
[1771700337696,0.97641199,628.89,628.58,1.273]
[1771700337897,0.97641199,628.88,628.58,1.273]
[1771700338093,0.97641199,628.87,628.58,1.273]
[1771700338297,0.97641199,628.86,628.58,1.273]
[1771700338495,0.97641199,628.85,628.58,1.273]
[1771700338698,0.97641199,628.84,628.58,1.273]
[1771700338998,0.97641199,628.83,628.58,1.273]
[1771700339199,0.97641199,628.82,628.58,1.273]
[1771700339399,0.97641199,628.81,628.58,1.273]
[1771700339599,1.19026626,629.01,628.58,1.273]
[1771700339799,0.98612395,629.0,628.58,1.273]
[1771700339997,0.98612395,628.99,628.58,1.273]
[1771700340196,0.98612395,628.98,628.58,1.273]
[1771700340496,0.98612395,628.97,628.58,1.273]
[1771700340696,0.98612395,628.96,628.58,1.273]
[1771700340899,0.98612395,628.95,628.58,1.273]
[1771700341096,0.98612395,628.94,628.58,1.273]
[1771700341301,0.98612395,628.93,628.58,1.273]
[1771700341502,0.98612395,628.92,628.58,1.273]
[1771700341797,0.98612395,628.91,628.58,1.273]
[1771700342000,0.98612395,628.9,628.58,1.273]
[1771700342202,0.98612395,628.89,628.58,1.273]
[1771700342401,0.98612395,628.88,628.58,1.273]
[1771700342602,0.98612395,628.87,628.58,1.273]
[1771700342899,0.98612395,628.86,628.58,1.273]
[1771700343098,0.98612395,628.85,628.58,1.273]
[1771700343400,0.98612395,628.84,628.58,1.273]
[1771700343598,0.98612395,628.83,628.58,1.273]
[1771700343802,0.98612395,628.82,628.58,1.273]
[1771700344003,1.19026626,629.02,628.58,1.273]
[1771700344299,0.98585433,629.01,628.58,1.273]
[1771700344498,0.98585433,629.0,628.58,1.273]
[1771700344699,0.98585433,628.99,628.58,1.273]
[1771700344905,0.98585433,628.98,628.58,1.273]
[1771700345103,0.98585433,628.97,628.58,1.273]
[1771700345301,0.98585433,628.96,628.58,1.273]
[1771700345602,0.98585433,628.95,628.58,1.273]
[1771700345805,0.98585433,628.94,628.58,1.273]
[1771700346002,0.98585433,628.93,628.58,1.273]
[1771700346201,0.98585433,628.92,628.58,1.273]
[1771700346402,0.98585433,628.91,628.58,1.273]
[1771700346606,0.98585433,628.9,628.58,1.273]
[1771700346906,0.98585433,628.89,628.58,1.273]
[1771700347206,0.98585433,628.88,628.58,1.273]
[1771700347406,0.98585433,628.87,628.58,1.273]
[1771700347606,0.98585433,628.86,628.58,1.273]
[1771700347806,0.98585433,628.85,628.58,1.273]
[1771700348103,0.98585433,628.84,628.58,1.273]
[1771700348404,1.19026626,629.05,628.58,1.273]
[1771700348604,0.98546853,629.04,628.58,1.273]
[1771700348808,0.98546853,629.03,628.58,1.273]
[1771700349008,0.98546853,629.02,628.58,1.273]
[1771700349207,0.98546853,629.01,628.58,1.273]
[1771700349403,0.98546853,629.0,628.58,1.273]
[1771700349707,0.98546853,628.99,628.58,1.273]
[1771700350006,0.98546853,628.98,628.58,1.273]
[1771700350205,0.98546853,628.97,628.58,1.273]
[1771700350410,0.98546853,628.96,628.58,1.273]
[1771700350610,0.98546853,628.95,628.58,1.273]
[1771700350811,0.98546853,628.94,628.58,1.273]
[1771700351011,0.98546853,628.93,628.58,1.273]
[1771700351209,0.98546853,628.92,628.58,1.273]
[1771700351409,0.98546853,628.91,628.58,1.273]
[1771700351609,0.98546853,628.9,628.58,1.273]
[1771700351812,1.19026626,629.11,628.58,1.273]
[1771700352107,0.94617602,629.1,628.58,1.273]
[1771700352309,0.94617602,629.09,628.58,1.273]
[1771700352507,0.94617602,629.08,628.58,1.273]
[1771700352712,0.94617602,629.07,628.58,1.273]
[1771700352912,0.94617602,629.06,628.58,1.273]
[1771700353109,0.94617602,629.05,628.58,1.273]
[1771700353412,0.94617602,629.04,628.58,1.273]
[1771700353709,0.94617602,629.03,628.58,1.273]
[1771700354008,0.94617602,629.02,628.58,1.273]
[1771700354312,0.94617602,629.01,628.58,1.273]
[1771700354512,0.94617602,629.0,628.58,1.273]
[1771700354710,0.94617602,628.99,628.58,1.273]
[1771700354913,0.94617602,628.98,628.58,1.273]
[1771700355111,0.94617602,628.97,628.58,1.273]
[1771700355313,0.94617602,628.96,628.58,1.273]
[1771700355509,0.94617602,628.95,628.58,1.273]
[1771700355811,0.94617602,628.94,628.58,1.273]
[1771700356009,0.94617602,628.93,628.58,1.273]
[1771700356210,0.94617602,628.92,628.58,1.273]
[1771700356409,0.94617602,628.91,628.58,1.273]
[1771700356609,1.19026626,629.11,628.58,1.273]
[1771700356813,0.94596109,629.1,628.52,0.27665596]
[1771700357014,0.94596109,629.09,628.52,0.27665596]
[1771700357210,0.94596109,629.08,628.52,0.27665596]
[1771700357414,0.94599185,629.07,628.52,0.27665596]
[1771700357610,0.94599185,629.06,628.52,0.27665596]
[1771700357812,0.94599185,629.05,628.52,0.27665596]
[1771700358016,0.94599185,629.04,628.52,0.27665596]
[1771700358315,0.94599185,629.03,628.52,0.27665596]
[1771700358516,0.94599185,629.02,628.52,0.27665596]
[1771700358815,0.94599185,629.01,628.52,0.27665596]
[1771700359011,0.94599185,629.0,628.52,0.27665596]
[1771700359216,0.94599185,628.99,628.52,0.27665596]
[1771700359511,0.94599185,628.98,628.52,0.27665596]
[1771700359715,0.94599185,628.97,628.52,0.27665596]
[1771700360015,0.94599185,628.96,628.52,0.27665596]
[1771700360214,0.94599185,628.95,628.52,0.27665596]
[1771700360412,0.94599185,628.94,628.52,0.27665596]
[1771700360615,0.94599185,628.93,628.52,0.27665596]
[1771700360814,0.94599185,628.92,628.52,0.27665596]
[1771700361013,0.94599185,628.91,628.53,1.844]
[1771700361214,0.94623341,628.9,628.53,1.844]
[1771700361417,1.18892395,629.1,628.53,1.844]
[1771700365315,2.13515736,629.09,628.53,1.844]
[1771700365514,0.94623341,629.08,628.53,1.844]
[1771700365716,0.94623341,629.07,628.53,1.844]
[1771700365920,0.94623341,629.06,628.53,1.844]
[1771700366218,0.94623341,629.05,628.53,1.844]
[1771700366417,0.94623341,629.04,628.53,1.844]
[1771700366615,0.94623341,629.03,628.53,1.844]
[1771700366820,0.94623341,629.02,628.53,1.844]
[1771700367119,0.94623341,629.01,628.53,1.844]
[1771700367316,0.94623341,629.0,628.53,1.844]
[1771700367516,0.94623341,628.99,628.53,1.844]
[1771700367816,0.94623341,628.98,628.53,1.844]
[1771700368116,0.94623341,628.97,628.53,1.844]
[1771700368318,0.94623341,628.96,628.53,1.844]
[1771700368517,0.94623341,628.95,628.53,1.844]
[1771700368720,0.94623341,628.94,628.53,1.844]
[1771700369034,0.94623341,628.93,628.53,1.844]
[1771700369320,0.94623341,628.92,628.53,1.844]
[1771700369615,0.94623341,628.91,628.53,1.844]
[1771700369816,0.94623341,628.9,628.53,1.844]
[1771700370020,0.94623341,628.89,628.53,1.844]
[1771700370221,0.94623341,628.88,628.53,1.844]
[1771700370418,0.94623341,628.87,628.53,1.844]
[1771700370620,1.18892395,629.07,628.53,1.844]
[1771700373222,2.13638303,629.06,628.53,1.844]
[1771700373420,0.94745908,629.05,628.53,1.844]
[1771700373620,0.94745908,629.04,628.53,1.844]
[1771700373825,0.94745908,629.03,628.53,1.844]
[1771700374023,0.94745908,629.02,628.53,1.844]
[1771700374222,0.94745908,629.01,628.53,1.844]
[1771700374423,0.94745908,629.0,628.53,1.844]
[1771700374724,0.94745908,628.99,628.53,1.844]
[1771700374923,0.94745908,628.98,628.53,1.844]
[1771700375125,0.94745908,628.97,628.53,1.844]
[1771700375322,0.94745908,628.96,628.53,1.844]
[1771700375620,1.18892395,629.05,628.53,1.844]
[1771700375621,0.94745908,628.95,628.53,1.844]
[1771700375825,0.94745908,628.94,628.53,1.844]
[1771700376023,0.94745908,628.93,628.53,1.844]
[1771700376222,0.94745908,628.92,628.53,1.844]
[1771700376428,0.94745908,628.91,628.53,1.844]
[1771700376627,0.94745908,628.9,628.53,1.844]
[1771700376824,0.94745908,628.89,628.53,1.844]
[1771700377125,0.94745908,628.88,628.53,1.844]
[1771700377324,0.94745908,628.87,628.53,1.844]
[1771700377529,0.94745908,628.86,628.53,1.844]
[1771700377728,0.94745908,628.85,628.53,1.844]
[1771700378024,0.94745908,628.84,628.53,1.844]
[1771700378229,0.94901447,628.83,628.53,1.844]
[1771700378428,1.18892395,629.03,628.53,1.844]
[1771700380929,2.13793842,629.03,628.53,1.844]
[1771700381130,0.94901447,629.02,628.53,1.844]
[1771700381330,0.94901447,629.01,628.53,1.844]
[1771700381527,0.94901447,629.0,628.53,1.844]
[1771700381726,0.94901447,628.99,628.53,1.844]
[1771700382031,0.94901447,628.98,628.53,1.844]
[1771700382330,0.94901447,628.97,628.53,1.844]
[1771700382529,0.94901447,628.96,628.53,1.844]
[1771700382728,0.94901447,628.95,628.53,1.844]
[1771700382927,0.94901447,628.94,628.53,1.844]
[1771700383125,0.94901447,628.93,628.53,1.844]
[1771700383328,0.94901447,628.92,628.53,1.844]
[1771700383526,0.94901447,628.91,628.53,1.844]
[1771700383725,0.94901447,628.9,628.53,1.844]
[1771700383928,1.18892395,629.03,628.53,1.844]
[1771700383929,0.94901447,628.89,628.53,1.844]
[1771700384128,0.94901447,628.88,628.53,1.844]
[1771700384331,0.94901447,628.87,628.53,1.844]
[1771700384628,0.94901447,628.86,628.53,1.844]
[1771700384828,0.94901447,628.85,628.53,1.844]
[1771700385031,0.94901447,628.84,628.53,1.844]
[1771700385228,0.94901447,628.83,628.53,1.844]
[1771700385531,1.18892395,629.03,628.53,1.844]
[1771700387834,2.13378597,629.03,628.53,1.844]
[1771700388030,0.94486202,629.02,628.53,1.844]
[1771700388234,0.94486202,629.01,628.53,1.844]
[1771700388532,0.94486202,629.0,628.53,1.844]
[1771700388836,0.94486202,628.99,628.53,1.844]
[1771700389031,0.94486202,628.98,628.53,1.844]
[1771700389235,0.94486202,628.97,628.53,1.844]
[1771700389434,0.94486202,628.96,628.53,1.844]
[1771700389632,0.94486202,628.95,628.53,1.844]
[1771700389835,0.94486202,628.94,628.53,1.844]
[1771700390031,0.94486202,628.93,628.53,1.844]